bitfinex/quotes_ETHUSD_20251012
["timestamp","ask_amount","ask_price","bid_price","bid_amount"]
[1760291517780,0.001,4123.4,4123.1,2.42535559]
[1760291518301,0.001,4123.4,4123.2,2.42529404]
[1760291518512,0.001,4123.4,4123.3,0.1208]
[1760291518673,0.001,4123.4,4123.3,2.54604191]
[1760291519295,0.001,4123.4,4123.3,0.1208]
[1760291519497,0.001,4123.4,4123.3,2.54604191]
[1760291520281,0.001,4123.4,4123.3,3.04318112]
[1760291520688,0.001,4123.4,4123.3,2.92238112]
[1760291520885,30.0,4123.3,4117.0,0.99999999]
[1760291521113,0.6336,4122.9,4118.9,2.4278282]
[1760291521282,0.4481,4122.8,4118.7,2.42793118]
[1760291521475,0.4481,4122.8,4117.5,0.4762157]
[1760291521690,0.001,4123.4,4123.1,2.42533471]
[1760291522008,0.001,4123.4,4123.0,2.42540096]
[1760291522213,0.001,4123.4,4122.2,2.42586029]
[1760291522214,0.001,4123.4,4119.0,1.92]
[1760291522415,0.001,4123.4,4123.3,2.42524191]
[1760291522581,0.001,4123.4,4123.3,2.91029877]
[1760291522781,0.001,4123.4,4123.3,3.54389877]
[1760291524514,3.69390516,4129.9,4123.5,4.34512428]
[1760291524710,2.4230797,4127.0,4125.9,2.42365812]
[1760291524918,2.42290672,4127.3,4123.5,4.34512428]
[1760291525212,1.28472079,4129.2,4123.3,0.48505686]
[1760291525213,0.001,4126.8,4123.7,0.6336]
[1760291525378,0.001,4126.8,4126.2,2.42349407]
[1760291525578,0.001,4126.8,4117.9,0.00159]
[1760291525778,0.001,4126.8,4123.2,1.92]
[1760291526003,0.001,4126.8,4123.2,0.6336]
[1760291526201,0.001,4126.8,4125.7,2.42382032]
[1760291526202,2.20722104,4126.7,4125.7,2.42382032]
[1760291526486,0.28722104,4126.7,4125.4,2.42396358]
[1760291526703,1.921,4126.8,4124.0,2.42483026]
[1760291526894,1.921,4126.8,4125.8,2.42375116]
[1760291527104,1.921,4126.8,4125.9,2.42369979]
[1760291527416,0.001,4126.8,4123.4,0.6336]
[1760291527607,0.001,4126.8,4126.3,2.42347528]
[1760291527781,0.001,4126.8,4124.0,0.6336]
[1760291528111,0.001,4126.8,4126.7,2.42324375]
[1760291530711,0.001,4126.8,4126.7,2.54404375]
[1760291530885,0.001,4126.8,4126.7,3.04078072]
[1760291531081,0.001,4126.8,4126.7,2.91998072]
[1760291532983,0.001,4126.8,4126.7,3.55358072]
[1760291533192,0.001,4126.8,4126.7,2.81998072]
[1760291533386,0.001,4126.8,4126.7,2.32324375]
[1760291535018,0.001,4126.8,4126.7,4.87684375]
[1760291536620,0.001,4126.8,4126.7,2.95684375]
[1760291536807,0.001,4127.7,4127.6,2.42271537]
[1760291538451,0.001,4127.7,4127.6,3.05631537]
[1760291538648,0.001,4127.7,4127.6,5.52422705]
[1760291539254,0.001,4127.7,4127.6,3.60422705]
[1760291541149,0.001,4127.7,4127.6,3.72502705]
[1760291543119,0.001,4127.7,4127.6,3.60422705]
[1760291543553,0.72822869,4138.0,4127.6,3.60422705]
[1760291543554,0.6832,4133.3,4131.4,2.42044069]
[1760291543755,0.6832,4133.3,4130.7,0.1016]
[1760291543756,22.862615,4133.1,4130.7,0.1016]
[1760291543958,0.4651,4133.0,4131.9,2.42014657]
[1760291544158,16.605055,4132.8,4131.9,2.42014475]
[1760291544320,1.92,4132.5,4129.9,0.1016]
[1760291544656,2.1721155,4132.7,4124.5,3.65755416]
[1760291544657,3.098175,4132.2,4130.0,0.1016]
[1760291544855,1.92,4131.9,4131.0,2.42072094]
[1760291545156,2.441,4131.8,4130.1,2.42124888]
[1760291545355,0.4361,4131.7,4131.5,2.42041857]
[1760291545655,0.4651,4132.1,4130.9,2.42074236]
[1760291545856,1.92,4131.9,4130.3,2.42113163]
[1760291546079,5.319357,4131.6,4131.4,2.42047811]
[1760291546250,1.92,4131.9,4131.5,2.42040206]
[1760291546446,0.8661457,4131.8,4131.7,2.42028499]
[1760291546646,13.321141,4131.7,4130.0,0.1016]
[1760291546948,13.321141,4131.7,4125.0,1.25723119]
[1760291546949,0.4651,4133.6,4130.1,0.1016]
[1760291547150,0.4651,4133.6,4127.9,1.92]
[1760291547151,18.550822,4133.1,4126.1,2.42355578]
[1760291547458,2.41993164,4132.4,4130.0,2.4213075]
[1760291547658,1.92,4132.0,4129.8,0.1016]
[1760291547846,1.92,4132.1,4130.0,2.4213075]
[1760291548046,0.89909316,4132.3,4132.1,2.42006768]
[1760291548270,6.02607,4132.2,4132.0,2.42012586]
[1760291548451,2.301232,4132.2,4132.0,2.42012586]
[1760291548646,2.301232,4132.2,4131.6,2.42036983]
[1760291548647,0.001,4131.7,4131.6,2.42036983]
[1760291550282,0.001,4131.7,4130.4,0.1016]
[1760291550450,0.001,4131.7,4130.7,2.42089718]
[1760291550848,0.001,4131.7,4131.2,2.42059405]
[1760291551277,0.001,4131.7,4131.0,2.42071294]
[1760291551461,0.001,4131.7,4131.6,2.42036983]
[1760291551671,0.001,4131.7,4130.5,2.4210144]
[1760291552058,0.001,4131.7,4130.3,0.1016]
[1760291552261,0.001,4131.7,4131.6,2.42036983]
[1760291553095,0.001,4131.7,4131.6,2.52196983]
[1760291554892,0.001,4131.7,4131.6,2.42036983]
[1760291555222,0.001,4131.7,4131.6,2.52196983]
[1760291555828,0.001,4131.7,4130.5,2.4210144]
[1760291556121,0.001,4131.7,4131.6,2.42036983]
[1760291556597,0.001,4131.7,4131.6,2.52196983]
[1760291557131,0.001,4131.7,4131.6,2.42036983]
[1760291558325,0.001,4131.7,4131.6,2.52196983]
[1760291559877,0.001,4131.7,4131.6,2.42036983]
[1760291560079,0.001,4131.7,4129.5,0.1016]
[1760291560300,7.4087,4131.3,4129.6,0.25232388]
[1760291560521,1.92,4131.0,4129.5,0.1016]
[1760291560682,4.774975,4131.5,4130.6,2.42090158]
[1760291560877,4.774975,4131.5,4128.2,1.92]
[1760291560878,0.24212003,4131.6,4130.0,2.5228682]
[1760291561077,0.001,4131.7,4131.4,2.4204796]
[1760291561318,0.001,4131.7,4131.3,2.42053331]
[1760291561492,0.001,4131.7,4131.1,2.42062565]
[1760291561696,0.001,4131.7,4130.2,2.42119025]
[1760291561894,0.001,4131.7,4131.2,2.42054594]
[1760291562098,0.001,4131.7,4130.2,2.42119025]
[1760291562418,0.1931,4131.7,4130.3,0.1016]
[1760291562614,0.001,4131.7,4131.1,2.42063184]
[1760291562777,0.001,4131.7,4131.3,2.42049404]
[1760291562981,8.854724,4131.6,4131.1,2.42065037]
[1760291563411,0.001,4131.7,4131.3,0.1208]
[1760291563617,0.4551,4131.5,4131.3,0.1208]
[1760291563820,0.28763703,4131.5,4131.3,0.1208]
[1760291563995,1.92,4131.3,4131.0,0.1208]
[1760291564314,6.417224,4131.1,4128.9,0.1016]
[1760291564517,1.92,4131.1,4130.4,2.42102702]
[1760291564689,0.23751,4131.0,4130.4,2.42102312]
[1760291564890,0.4551,4131.2,4130.4,2.42102312]
[1760291564891,2.695856,4131.1,4130.4,2.42101812]
[1760291565212,1.92,4131.1,4130.5,2.42099994]
[1760291565383,8.406039,4131.0,4130.3,2.42111942]
[1760291565587,8.406039,4131.0,4129.3,0.1016]
[1760291565588,1.92,4130.9,4130.4,2.42105309]
[1760291565818,1.92,4131.1,4129.7,2.42148271]
[1760291565819,1.92,4131.1,4129.7,0.1016]
[1760291565982,1.92,4131.1,4130.5,2.42096301]
[1760291566188,1.73629408,4131.0,4129.7,0.1016]
[1760291566390,1.73629408,4131.0,4130.5,2.42097004]
[1760291566722,0.4551,4130.9,4130.5,2.42097004]
[1760291566928,1.73629408,4131.0,4129.2,0.1016]
[1760291567219,1.73629408,4131.0,4130.8,2.42080713]
[1760291567417,1.92,4131.1,4130.9,2.42077997]
[1760291567618,2.87521947,4132.1,4131.1,2.42061554]
[1760291567619,1.92,4131.5,4131.1,2.42061554]
[1760291567918,1.92,4131.5,4130.1,0.1016]
[1760291567919,2.1381,4131.9,4130.1,0.1016]
[1760291568120,0.001,4132.0,4131.4,2.42044394]
[1760291568287,0.001,4132.0,4131.6,2.42036983]
[1760291572140,0.001,4132.0,4129.7,1.92]
[1760291572342,0.001,4132.0,4129.3,4.34368769]
[1760291572343,15.7167122,4131.7,4130.3,2.42113163]
[1760291572544,15.7167122,4131.7,4129.8,0.25536]
[1760291572730,15.7167122,4131.7,4131.5,2.42037977]
[1760291572924,15.7167122,4131.7,4131.4,2.42047656]
[1760291573119,15.7167122,4131.7,4130.3,2.42109008]
[1760291573120,0.001,4131.7,4128.4,18.2727122]
[1760291573320,0.001,4131.7,4129.6,1.92]
[1760291573643,0.001,4131.7,4129.7,0.1016]
[1760291573843,0.001,4131.7,4131.5,2.42038193]
[1760291574024,0.001,4131.7,4131.5,2.42037636]
[1760291574225,0.001,4131.7,4131.6,2.54116983]
[1760291575041,0.001,4131.7,4131.6,0.1208]
[1760291575233,0.436,4131.7,4131.6,2.54116983]
[1760291575610,0.436,4131.7,4131.6,0.1208]
[1760291576940,6.45114722,4131.7,4131.6,0.1208]
[1760291577140,1.92,4131.6,4128.1,2.91875471]
[1760291577345,1.92,4131.1,4129.4,2.42165932]
[1760291577546,0.435,4131.0,4129.4,2.42165932]
[1760291577746,0.435,4131.0,4129.5,2.42160067]
[1760291578081,0.52201391,4130.9,4129.1,0.1016]
[1760291578243,0.52201391,4130.9,4129.7,2.4214834]
[1760291578439,1.92,4131.1,4130.8,0.1208]
[1760291578644,15.7157122,4131.3,4129.8,2.42137253]
[1760291578958,1.92,4131.2,4130.4,2.421046]
[1760291579146,1.92,4131.2,4131.0,2.42071489]
[1760291579346,1.92,4131.2,4130.4,2.42107301]
[1760291579561,1.92,4131.2,4130.0,2.4213075]
[1760291580284,0.001,4131.7,4130.3,2.42109842]
[1760291580466,0.001,4131.7,4131.5,2.42038418]
[1760291580676,0.001,4131.7,4131.6,2.42036983]
[1760291582091,0.001,4131.7,4131.6,2.52196983]
[1760291582751,15.7157122,4133.5,4131.6,2.52196983]
[1760291582752,15.7167122,4133.9,4133.2,2.41939171]
[1760291582955,2.12548122,4133.6,4132.0,2.42012208]
[1760291583278,2.12548122,4133.6,4133.2,2.4194263]
[1760291583678,2.12548122,4133.6,4132.1,2.52165626]
[1760291583679,2.12548122,4133.6,4132.2,2.42001839]
[1760291583869,2.355,4133.5,4132.8,2.41962048]
[1760291584067,2.355,4133.5,4131.6,2.42036983]
[1760291584282,1.92,4133.2,4132.9,2.41959916]
[1760291584481,1.92,4133.3,4132.9,2.41959916]
[1760291584787,0.435,4133.6,4133.2,2.4193891]
[1760291585173,0.2181,4133.7,4133.2,2.4193891]
[1760291585378,0.435,4133.6,4133.2,2.4193891]
[1760291585552,0.435,4133.5,4133.2,2.4193891]
[1760291585748,0.435,4133.5,4133.0,2.41954833]
[1760291585749,0.435,4133.5,4133.0,2.41954489]
[1760291585987,24.6612192,4133.3,4131.8,2.42025267]
[1760291586186,2.1368,4131.9,4130.4,2.42107301]
[1760291586351,1.92,4131.7,4130.0,0.44]
[1760291586551,1.92,4131.7,4130.2,2.42119025]
[1760291586858,1.00492529,4131.8,4130.2,2.42119025]
[1760291587056,0.56992529,4131.8,4131.4,2.42046988]
[1760291587267,0.6336,4132.0,4131.5,2.42040468]
[1760291587468,0.6336,4132.0,4131.3,2.42048924]
[1760291587681,0.435,4131.9,4131.4,2.42047594]
[1760291588185,2.75476983,4133.1,4130.7,2.42089718]
[1760291588186,2.355,4132.5,4130.8,2.42083857]
[1760291588405,2.355,4132.5,4132.0,2.42012205]
[1760291588698,2.355,4132.5,4132.1,0.1208]
[1760291588699,1.80707122,4132.4,4132.1,0.1208]
[1760291589054,0.1208,4132.8,4132.5,2.41980573]
[1760291589293,15.7157122,4132.7,4132.4,0.1208]
[1760291589592,1.92,4132.3,4132.0,0.1208]
[1760291589888,1.92,4132.4,4132.0,0.1208]
[1760291590071,1.4770073,4132.3,4132.0,0.1208]
[1760291590387,0.435,4132.3,4132.0,2.54091955]
[1760291591172,0.435,4132.3,4132.1,2.4200739]
[1760291591370,2.355,4132.2,4132.0,0.1208]
[1760291591571,1.92,4132.0,4131.6,0.1208]
[1760291592003,0.435,4131.9,4130.5,2.42100761]
[1760291592208,1.80707122,4131.8,4131.4,0.1208]
[1760291592409,2.24207122,4131.8,4131.4,2.54128507]
[1760291592706,1.80707122,4131.8,4131.5,2.42040648]
[1760291593010,2.355,4132.4,4131.8,2.42025088]
[1760291593211,2.355,4132.4,4131.9,2.42013716]
[1760291593408,0.435,4132.3,4131.9,2.42013716]
[1760291593715,0.435,4132.3,4130.9,2.42077997]
[1760291593915,0.435,4132.3,4130.8,0.44]
[1760291594074,0.435,4132.3,4130.9,2.42077997]
[1760291594075,1.80707122,4132.2,4130.9,2.42077997]
[1760291594279,1.92,4132.0,4130.9,2.42077997]
[1760291594477,1.80707122,4132.2,4130.9,4.84155994]
[1760291594692,15.7157122,4133.1,4131.1,2.42066277]
[1760291594890,15.7157122,4133.1,4131.5,2.42039625]
[1760291595213,1.92,4133.0,4132.8,2.41965623]
[1760291595716,1.92,4133.0,4131.6,0.44]
[1760291596014,4.483216,4132.6,4130.4,2.42107301]
[1760291596175,1.92,4131.9,4130.3,0.5983]
[1760291596378,4.34031174,4131.7,4130.3,0.5983]
[1760291596586,2.42031174,4131.7,4130.3,0.5983]
[1760291596817,2.42031174,4131.7,4130.9,2.42072366]
[1760291597027,0.69773117,4131.6,4130.9,2.42072366]
[1760291597305,0.69773117,4131.6,4130.9,2.42072617]
[1760291597513,0.69773117,4131.6,4131.0,2.42071918]
[1760291597711,0.69773117,4131.6,4130.3,0.5983]
[1760291597712,0.69773117,4131.6,4131.1,2.42062931]
[1760291598005,1.92,4131.9,4131.3,2.42049699]
[1760291598511,0.6336,4132.4,4130.7,0.4733]
[1760291598726,0.6336,4132.4,4131.8,2.4202329]
[1760291598924,0.6336,4132.4,4131.9,2.42018746]
[1760291599294,0.438,4132.3,4130.8,2.42078128]
[1760291599495,0.29916,4132.2,4131.6,2.42035061]
[1760291600088,0.29916,4132.2,4130.7,0.4733]
[1760291600288,4.973899,4131.8,4130.4,2.42107301]
[1760291600602,0.2319,4131.7,4131.1,2.42066187]
[1760291600997,0.6699,4131.7,4131.1,2.42066187]
[1760291601213,1.92,4131.5,4130.1,0.1583]
[1760291601409,1.89392122,4131.6,4130.1,0.1583]
[1760291601625,15.7157122,4131.3,4129.4,0.4733]
[1760291601812,1.92,4131.0,4129.2,0.4733]
[1760291602018,1.92,4131.0,4130.4,2.4210594]
[1760291602333,1.92,4131.0,4129.4,2.42165932]
[1760291602334,2.28353178,4131.5,4130.8,2.42080117]
[1760291602521,0.6336,4131.4,4130.2,0.6316]
[1760291602715,0.7544,4131.4,4130.9,2.42076472]
[1760291603024,0.7544,4131.4,4130.9,2.42076685]
[1760291603435,0.1208,4131.4,4130.8,0.1208]
[1760291603641,0.1208,4132.0,4131.5,2.42042778]
[1760291603926,1.81945122,4132.0,4131.6,0.1208]
[1760291604231,1.81945122,4132.0,4131.9,2.42019409]
[1760291604415,1.81945122,4132.0,4131.1,2.420611]
[1760291604416,0.001,4132.9,4131.2,0.4733]
[1760291604619,15.7157122,4132.5,4130.9,2.42074095]
[1760291604930,15.7157122,4132.5,4132.0,2.42009797]
[1760291605102,1.92,4132.4,4132.2,2.42000673]
[1760291605302,1.92,4132.4,4132.1,2.42006137]
[1760291605517,1.80737122,4132.3,4132.2,2.42001839]
[1760291605718,1.92,4132.4,4132.3,2.41995982]
[1760291605922,1.92,4132.4,4130.7,0.4733]
[1760291605923,1.92,4132.2,4130.7,0.4733]
[1760291606131,0.6336,4132.3,4131.8,2.42020522]
[1760291606331,1.92,4132.4,4131.8,2.42020055]
[1760291606642,1.92,4132.4,4132.0,2.42012854]
[1760291606853,0.36353178,4132.7,4131.4,2.420487]
[1760291607014,1.92,4133.0,4132.3,2.41991925]
[1760291607356,0.6336,4133.0,4132.2,2.42000974]
[1760291607535,0.6336,4133.0,4132.4,2.41985813]
[1760291607925,0.438,4132.8,4132.4,2.41985813]
[1760291608143,0.6336,4133.0,4131.4,2.420487]
[1760291608343,1.92,4133.2,4127.4,0.72794949]
[1760291608344,2.5536,4131.9,4130.6,0.002]
[1760291608543,0.6336,4131.5,4130.6,0.002]
[1760291608842,1.92,4131.3,4130.6,0.002]
[1760291609044,6.204173,4131.1,4130.6,0.002]
[1760291609243,0.6336,4131.2,4130.6,0.002]
[1760291609446,0.438,4131.0,4130.6,0.002]
[1760291609829,0.438,4131.0,4130.6,2.42294221]
[1760291610030,0.438,4130.9,4130.6,0.002]
[1760291610638,2.14913936,4131.1,4130.8,2.42083857]
[1760291611036,2.14913936,4131.1,4130.6,0.002]
[1760291611037,0.438,4131.5,4130.6,0.002]
[1760291611239,0.2319,4131.8,4131.2,2.42056865]
[1760291611240,2.5536,4131.7,4131.2,2.42056865]
[1760291611439,0.438,4131.6,4131.2,2.42058265]
[1760291611636,0.438,4131.6,4130.6,0.002]
[1760291611637,0.6336,4131.8,4130.6,0.002]
[1760291611837,0.6336,4131.8,4131.2,2.42055834]
[1760291612042,2.485011,4131.7,4131.4,2.42047617]
[1760291612351,0.438,4131.7,4131.4,2.42047617]
[1760291612717,0.438,4131.7,4131.5,2.42041341]
[1760291612914,0.438,4131.7,4131.4,2.42047194]
[1760291613519,0.438,4131.7,4131.0,2.4206663]
[1760291613748,0.438,4131.7,4131.3,2.42052464]
[1760291613944,2.42065353,4131.2,4130.6,0.002]
[1760291614148,2.358,4131.6,4130.6,0.002]
[1760291614381,0.6336,4131.5,4130.7,2.42089718]
[1760291614584,0.6336,4131.3,4130.9,2.42076218]
[1760291614780,0.6336,4131.3,4131.0,2.42071164]
[1760291614956,1.33904,4131.3,4130.7,2.54169718]
[1760291615163,0.1208,4131.6,4130.9,0.1208]
[1760291615347,0.1208,4131.6,4131.2,2.42056017]
[1760291615877,0.438,4131.5,4130.9,0.1208]
[1760291616083,2.5536,4131.3,4130.9,0.1208]
[1760291616246,2.5536,4131.3,4130.6,0.002]
[1760291616247,2.5536,4131.0,4130.6,0.002]
[1760291616676,19.45511118,4130.7,4130.6,0.002]
[1760291616873,11.77368918,4130.7,4130.6,0.002]
[1760291617077,12.21168918,4130.7,4130.6,0.002]
[1760291617275,14.24646109,4130.7,4130.6,0.002]
[1760291617481,2.42113163,4130.3,4130.2,0.002]
[1760291617648,20.69044383,4130.3,4130.2,0.002]
[1760291617845,2.5536,4130.3,4130.2,0.002]
[1760291618087,11.646683,4130.3,4130.2,0.002]
[1760291618262,10.5313263,4130.3,4130.2,0.002]
[1760291618457,6.57739993,4130.3,4130.2,0.002]
[1760291618677,8.91539993,4130.3,4130.2,0.002]
[1760291618872,8.0452683,4130.3,4130.2,0.002]
[1760291619264,2.9916,4130.3,4130.2,0.002]
[1760291619580,6.698036,4130.3,4130.2,0.002]
[1760291619774,2.9916,4130.3,4130.2,0.002]
[1760291620286,2.9916,4130.3,4124.0,1.43342751]
[1760291620287,0.6336,4129.7,4124.0,1.43342751]
[1760291620488,5.267917,4127.2,4125.5,0.1583]
[1760291620651,1.92,4127.2,4125.9,0.4733]
[1760291620858,0.6336,4127.1,4125.9,0.4733]
[1760291621070,0.6336,4127.1,4126.6,2.42330221]
[1760291621457,0.89688073,4127.0,4126.5,2.42335926]
[1760291621655,0.89688073,4127.0,4126.6,2.42330064]
[1760291621954,0.89688073,4127.0,4125.9,2.89700767]
[1760291622299,0.6336,4127.1,4126.4,2.42338357]
[1760291623170,0.6336,4127.1,4126.8,2.42517946]
[1760291623370,0.438,4127.0,4126.8,0.002]
[1760291623565,0.6336,4126.9,4126.8,0.002]
[1760291623769,1.0716,4126.9,4126.8,0.002]
[1760291624397,0.6336,4126.9,4126.8,0.002]
[1760291625566,0.6336,4126.9,4126.8,2.42518503]
[1760291625767,0.6336,4127.2,4126.8,0.002]
[1760291627408,2.42249363,4128.0,4126.8,0.002]
[1760291627409,0.4434,4128.2,4126.8,0.24452363]
[1760291627562,0.65647879,4128.6,4126.9,2.88159965]
[1760291627762,0.65647879,4128.6,4128.1,2.42237585]
[1760291628093,0.4522,4128.5,4128.2,2.42234679]
[1760291628996,0.4522,4128.5,4128.1,2.42241319]
[1760291629162,0.6336,4128.4,4128.1,2.42241319]
[1760291629594,0.6336,4128.4,4128.2,2.42234558]
[1760291629793,15.75232039,4129.5,4127.4,0.4585]
[1760291629973,4.44909894,4129.4,4127.4,0.4585]
[1760291630171,2.02743204,4129.4,4128.5,2.42218151]
[1760291630370,4.97536803,4129.3,4128.5,2.42218151]
[1760291630680,0.2319,4129.8,4129.6,2.42152582]
[1760291630681,0.6841,4129.8,4129.6,2.42152582]
[1760291630880,15.75232039,4130.0,4129.6,2.42152063]
[1760291631084,0.95330546,4130.2,4128.5,0.4585]
[1760291631085,0.95330546,4130.2,4128.7,2.4220699]
[1760291631381,1.4212,4130.3,4128.8,0.28805699]
[1760291631580,0.6336,4130.2,4130.0,2.42129326]
[1760291631783,0.4522,4131.0,4128.9,2.42195257]
[1760291631962,2.335244,4130.9,4130.3,2.42111813]
[1760291632163,0.4522,4131.0,4130.4,2.42106083]
[1760291632362,6.84382,4130.9,4129.0,0.4585]
[1760291632597,0.729602,4130.8,4130.3,2.42112741]
[1760291632775,2.78515,4131.1,4130.1,2.4212351]
[1760291632974,0.4522,4130.7,4129.6,2.42149938]
[1760291633280,0.4522,4130.7,4130.4,2.42107121]
[1760291633480,0.6336,4130.6,4130.5,2.42099133]
[1760291633682,1.0858,4130.6,4130.4,2.42106102]
[1760291633882,0.4522,4130.6,4130.4,2.42106102]
[1760291634399,0.6336,4130.5,4129.2,2.42177661]
[1760291634691,0.6336,4130.5,4129.1,0.31684687]
[1760291634692,3.3785375,4130.5,4129.1,0.31684687]
[1760291634992,3.3785375,4130.5,4129.9,2.4213554]
[1760291635595,2.9263375,4130.5,4129.1,2.42183526]
[1760291635765,2.9263375,4130.5,4129.0,2.42189392]
[1760291635766,1.28774546,4130.5,4129.2,0.4585]
[1760291635966,0.6336,4130.9,4130.4,2.42107301]
[1760291636166,0.65414546,4131.0,4129.7,2.4214834]
[1760291636367,1.28774546,4131.0,4130.9,2.42077997]
[1760291636767,0.7544,4131.0,4130.9,2.42077997]
[1760291639104,0.4522,4131.3,4130.9,2.42077997]
[1760291639269,1.0858,4131.2,4131.0,2.42066421]
[1760291639468,1.0858,4131.2,4130.5,0.1208]
[1760291639469,0.4522,4131.1,4130.5,0.1208]
[1760291640398,0.4522,4131.1,4130.8,2.42078419]
[1760291640605,0.4522,4131.1,4130.6,2.4209443]
[1760291640606,0.4522,4131.1,4130.9,2.42077114]
[1760291640801,0.7544,4131.2,4130.5,0.1208]
[1760291641101,0.7544,4131.2,4130.5,2.54179722]
[1760291641465,0.7544,4131.2,4131.1,2.42066277]
[1760291642273,15.75332039,4131.5,4131.4,2.420487]
[1760291642274,0.001,4131.5,4131.4,2.420487]
[1760291642799,0.001,4131.9,4131.4,3.36309208]
[1760291642983,0.001,4131.9,4131.8,2.42025267]
[1760291644400,2.5536,4131.7,4130.1,0.4585]
[1760291644573,0.6336,4131.5,4129.7,0.1583]
[1760291644773,2.5536,4131.3,4129.6,2.42154203]
[1760291645000,2.5536,4131.3,4129.3,0.1583]
[1760291645001,1.92,4131.3,4129.7,0.4585]
[1760291645190,0.6336,4131.0,4130.5,2.42099521]
[1760291645375,0.4522,4130.9,4130.2,2.42116607]
[1760291645577,0.4522,4130.9,4129.4,2.42165932]
[1760291645905,0.6336,4131.2,4130.8,2.42083795]
[1760291646218,0.6336,4131.2,4129.5,0.76234593]
[1760291646219,0.39882956,4131.7,4130.3,0.4585]
[1760291646408,0.6336,4131.8,4131.5,2.42038466]
[1760291646574,0.6336,4131.8,4130.4,2.42107301]
[1760291646575,0.6346,4131.9,4130.5,2.4210144]
[1760291646905,0.001,4131.9,4130.6,0.74645144]
[1760291647203,0.001,4131.9,4131.4,2.42048138]
[1760291647608,0.001,4131.9,4131.8,2.42025267]
[1760291648924,0.001,4131.9,4131.8,2.87875267]
[1760291649280,0.001,4131.9,4131.8,2.42025267]
[1760291652707,0.001,4131.9,4131.8,2.54105267]
[1760291653493,0.001,4131.9,4130.1,2.42120731]
[1760291653688,0.001,4131.9,4131.6,0.1208]
[1760291653923,0.001,4131.9,4131.8,2.42025267]
[1760291654222,0.001,4131.9,4131.8,2.54105267]
[1760291656911,0.001,4131.9,4131.8,2.99955267]
[1760291657276,0.001,4131.9,4131.8,2.87875267]
[1760291657481,0.001,4131.9,4131.8,5.96226128]
[1760291657708,0.001,4132.9,4132.8,2.41966705]
[1760291658074,0.001,4132.9,4132.8,2.87376705]
[1760291659591,0.001,4132.9,4132.8,2.41966705]
[1760291660310,0.001,4132.9,4132.8,2.87376705]
[1760291660613,0.001,4132.9,4132.8,3.41884854]
[1760291662310,0.001,4132.9,4132.8,2.96474854]
[1760291662503,0.001,4132.9,4132.8,2.41966705]
[1760291665224,0.001,4132.9,4132.8,2.87376705]
[1760291666098,0.001,4132.9,4132.8,2.41966705]
[1760291667328,0.001,4132.9,4132.8,2.99456705]
[1760291668340,0.001,4132.9,4132.8,2.54046705]
[1760291668650,0.001,4132.9,4128.6,0.09903779]
[1760291668651,2.4197256,4132.7,4128.6,0.09903779]
[1760291668927,0.001,4132.9,4129.0,0.4541]
[1760291668928,7.59721959,4131.3,4129.0,0.4541]
[1760291669132,7.59721959,4131.3,4128.9,0.1583]
[1760291669133,8.01436738,4131.3,4129.3,0.4541]
[1760291669310,8.46286738,4131.3,4129.3,2.87580265]
[1760291669507,6.40714379,4131.3,4129.3,0.4541]
[1760291669833,10.06672559,4131.3,4129.4,2.42162483]
[1760291670129,10.48387338,4131.3,4129.3,0.4541]
[1760291670302,10.48387338,4131.3,4129.7,2.42143684]
[1760291670503,10.48387338,4131.3,4129.3,0.4541]
[1760291670736,14.39842038,4131.3,4129.6,2.42148993]
[1760291670924,12.26131038,4131.3,4129.3,0.4541]
[1760291671637,11.84416259,4131.3,4129.3,0.4541]
[1760291671831,16.28266959,4131.3,4129.3,0.4541]
[1760291672231,8.56376459,4131.3,4129.8,2.42141298]
[1760291672754,5.64984559,4131.3,4129.8,2.42141298]
[1760291672920,14.79646159,4131.3,4129.8,2.42141298]
[1760291673506,15.21360938,4131.3,4129.8,2.42141298]
[1760291674007,12.27010938,4131.3,4129.8,2.42141298]
[1760291674420,12.27010938,4131.3,4129.7,2.42146976]
[1760291674806,6.06699338,4131.3,4129.3,0.4541]
[1760291675007,12.21970538,4131.3,4129.6,2.42149283]
[1760291675208,12.21970538,4131.3,4129.9,0.4431]
[1760291675209,11.10168059,4131.3,4129.9,0.4431]
[1760291675542,3.0021,4131.3,4130.1,0.2114]
[1760291675721,4.34054559,4131.3,4130.3,2.42107832]
[1760291675916,4.34054559,4131.3,4130.6,2.42089968]
[1760291675917,1.92,4131.3,4130.6,2.42089968]
[1760291676119,1.92,4131.3,4130.8,2.42282827]
[1760291676523,1.92,4131.3,4130.9,2.42077435]
[1760291676730,1.92,4131.3,4130.8,2.42283305]
[1760291677121,1.92,4131.3,4131.1,0.002]
[1760291677441,0.6336,4131.8,4131.1,0.002]
[1760291677632,2.92233941,4131.8,4131.1,0.002]
[1760291677834,2.42040814,4131.6,4131.1,0.002]
[1760291678030,4.34040814,4131.6,4131.1,0.002]
[1760291678234,2.42031662,4131.7,4131.1,0.002]
[1760291678613,1.92,4132.1,4131.1,2.42265999]
[1760291678945,2.42036873,4133.4,4131.4,2.420487]
[1760291678946,0.41714779,4133.2,4131.4,2.420487]
[1760291679247,0.001,4133.4,4132.7,2.4197201]
[1760291679448,0.001,4133.4,4132.4,0.4431]
[1760291679645,0.001,4133.4,4133.3,2.41937434]
[1760291680627,0.001,4133.4,4133.3,2.86247434]
[1760291685956,0.001,4133.4,4131.3,2.42051746]
[1760291686156,0.001,4133.4,4133.0,2.41954783]
[1760291686157,0.4377,4133.3,4133.0,2.41954783]
[1760291686361,0.001,4133.4,4132.9,2.41959624]
[1760291687527,1.92,4133.2,4132.9,2.41959624]
[1760291687739,1.92,4133.2,4133.0,2.4195117]
[1760291687939,1.92,4133.2,4133.0,2.41950405]
[1760291688140,1.92,4133.2,4132.8,2.41966221]